bitfinex-derivatives/quotes_BNBF0:USTF0_20250303
["timestamp","ask_amount","ask_price","bid_price","bid_amount"]
[1740985489268,1.57870039,598.16,596.95,0.27177463]
[1740985489469,0.33436987,598.14,596.95,0.27177463]
[1740985489667,1.57870039,598.13,596.95,0.27177463]
[1740985489862,0.33438665,598.11,596.95,0.27177463]
[1740985490261,1.74774104,598.1,596.95,0.27177463]
[1740985490467,0.33440342,598.08,596.95,1.50318652]
[1740985490663,0.33440342,598.08,596.96,0.27177463]
[1740985491266,0.51140342,598.08,596.96,0.27177463]
[1740985491865,1.26140342,598.08,596.96,0.27177463]
[1740985493370,1.26140342,598.08,596.97,0.27177463]
[1740985493571,1.26140342,598.08,596.98,0.27177463]
[1740985493772,1.26140342,598.08,596.9,0.27177463]
[1740985494071,1.26140342,598.08,596.91,0.27177463]
[1740985494269,1.26140342,598.08,596.92,0.27177463]
[1740985494567,1.26140342,598.08,596.82,1.23141189]
[1740985494568,1.26140342,598.08,596.93,0.27177463]
[1740985494771,1.26140342,598.08,596.82,1.23141189]
[1740985494772,1.26140342,598.08,596.9,0.27177463]
[1740985494968,1.26140342,598.08,596.91,0.27177463]
[1740985495166,1.26140342,598.08,596.9,0.27177463]
[1740985495372,1.74776298,598.07,596.82,1.23141189]
[1740985495572,1.74776298,598.07,596.59,1.23125576]
[1740985495573,0.3344146,598.06,596.9,0.27180028]
[1740985496272,1.7477703,598.05,596.9,0.27180028]
[1740985496472,0.33442579,598.04,596.9,0.27180028]
[1740985496672,1.17042579,598.04,596.9,0.27180028]
[1740985497276,0.263,598.03,596.9,0.27180028]
[1740985497967,0.33443697,598.02,596.9,0.27180028]
[1740985498170,0.33443697,598.02,596.9,1.50321217]
[1740985498372,0.33443697,598.02,596.91,0.27180028]
[1740985499370,1.7478215,598.01,596.91,0.27180028]
[1740985499572,0.33444816,598.0,596.91,0.27180028]
[1740985500171,0.33444816,598.0,596.9,0.27180028]
[1740985500471,1.91354719,598.0,596.91,0.27180028]
[1740985500671,1.91354719,598.0,596.9,0.27180028]
[1740985500869,1.91354719,598.0,596.92,0.27180028]
[1740985501067,0.842,597.99,596.93,0.27180028]
[1740985501274,0.33445934,597.98,596.93,0.27180028]
[1740985501571,0.33445934,597.98,596.94,0.27180028]
[1740985501774,0.33445934,597.98,596.9,0.27180028]
[1740985501971,0.33445934,597.98,596.91,0.27180028]
[1740985502170,0.33445934,597.98,596.92,0.27180028]
[1740985502471,0.33445934,597.98,596.93,0.27180028]
[1740985502676,0.33445934,597.98,596.94,0.27180028]
[1740985502874,0.33445934,597.98,596.9,1.50321217]
[1740985503075,0.33445934,597.98,596.95,0.27180028]
[1740985503277,0.33445934,597.98,596.96,0.27180028]
[1740985503475,0.33445934,597.98,596.97,0.27180028]
[1740985503676,0.33445934,597.98,596.9,1.23141189]
[1740985503677,0.33445934,597.98,596.91,0.27180028]
[1740985503875,0.33445934,597.98,596.92,0.27180028]
[1740985504076,0.33445934,597.98,596.9,1.23141189]
[1740985504077,0.33445934,597.98,596.93,0.27180028]
[1740985504273,0.33445934,597.98,596.9,1.23141189]
[1740985504274,0.33445934,597.98,596.94,0.27180028]
[1740985504479,0.33445934,597.98,596.9,1.23141189]
[1740985504677,0.33445934,597.98,596.91,0.27178784]
[1740985504878,0.33445934,597.98,597.0,1.23141189]
[1740985505077,0.33445934,597.98,597.01,0.27178784]
[1740985505477,1.74774835,597.97,597.01,0.27178784]
[1740985505778,0.33445934,597.98,597.01,0.27178784]
[1740985507283,0.33445934,597.98,597.02,1.23141189]
[1740985507677,1.005,597.97,597.02,1.23141189]
[1740985508579,1.005,597.97,597.03,0.27173132]
[1740985509173,1.005,597.97,597.04,0.27173132]
[1740985509780,1.005,597.97,597.05,0.27173132]
[1740985510075,1.005,597.97,597.06,0.27173132]
[1740985510280,1.005,597.97,596.58,1.4793059]
[1740985510281,1.005,597.97,597.07,0.27173132]
[1740985510583,1.005,597.97,597.08,0.27173132]
[1740985510784,1.005,597.97,596.98,0.27173132]
[1740985511284,1.005,597.97,596.99,0.27173132]
[1740985511479,1.005,597.97,597.0,0.27173132]
[1740985511783,1.005,597.97,597.01,0.27173132]
[1740985511983,1.005,597.97,597.02,0.27173132]
[1740985512183,1.005,597.97,597.03,0.27173132]
[1740985512386,1.005,597.97,597.04,0.27173132]
[1740985512586,1.005,597.97,597.05,0.27173132]
[1740985512787,1.005,597.97,597.42,1.23141189]
[1740985512987,1.005,597.97,597.43,0.27141982]
[1740985514091,1.005,597.97,597.44,0.27141982]
[1740985514289,1.005,597.97,597.45,0.27141982]
[1740985514488,1.268,597.97,597.46,0.27141982]
[1740985514690,1.268,597.97,597.42,1.23141189]
[1740985514691,1.268,597.97,597.47,0.27141982]
[1740985514891,1.268,597.97,597.48,0.27141982]
[1740985515085,1.268,597.97,597.49,0.27141982]
[1740985515285,1.268,597.97,597.5,0.27141982]
[1740985515485,1.268,597.97,596.99,0.95146682]
[1740985515486,1.268,597.97,597.57,1.23141189]
[1740985515688,1.268,597.97,597.58,0.27141982]
[1740985515884,1.268,597.97,597.59,0.27141982]
[1740985516085,1.268,597.97,597.6,0.27141982]
[1740985516286,1.268,597.97,597.61,0.27141982]
[1740985516585,1.268,597.97,597.62,0.27141982]
[1740985516790,1.268,597.97,597.63,0.27141982]
[1740985517087,1.268,597.97,597.64,0.27141982]
[1740985517287,1.268,597.97,597.65,0.27141982]
[1740985517484,1.268,597.97,597.79,1.23141189]
[1740985517790,1.268,597.97,597.8,0.27141982]
[1740985517992,1.268,597.97,597.81,0.27141982]
[1740985518392,1.268,597.97,597.82,0.27141982]
[1740985518591,1.268,597.97,597.83,0.27141982]
[1740985518892,1.268,597.97,597.84,0.27141982]
[1740985519094,1.268,597.97,597.85,0.27141982]
[1740985519293,1.268,597.97,597.86,0.27141982]
[1740985519597,1.268,597.97,597.87,0.27141982]
[1740985519893,1.268,597.97,597.88,0.27141982]
[1740985520093,1.268,597.97,597.89,0.27141982]
[1740985520394,1.268,597.97,597.9,0.27141982]
[1740985520595,1.268,597.97,597.91,0.27141982]
[1740985520787,1.268,597.97,597.47,0.27141982]
[1740985520987,1.268,597.97,597.48,0.27141982]
[1740985521186,1.268,597.97,597.49,0.27141982]
[1740985521391,1.268,597.97,597.5,0.27141982]
[1740985521587,1.268,597.97,597.47,0.27141982]
[1740985521890,1.268,597.97,597.48,0.27141982]
[1740985522088,1.268,597.97,596.91,0.27141982]
[1740985522290,1.268,597.97,596.92,0.27141982]
[1740985522492,1.268,597.97,596.93,0.27141982]
[1740985522691,1.268,597.97,596.94,0.27141982]
[1740985522894,1.268,597.97,596.95,0.27122257]
[1740985523095,1.268,597.97,596.96,0.27122257]
[1740985523295,1.268,597.97,596.97,0.27122257]
[1740985523501,1.268,597.97,596.98,0.27122257]
[1740985523798,1.268,597.97,596.99,0.27122257]
[1740985523998,1.268,597.97,597.0,0.27122257]
[1740985524199,1.268,597.97,597.01,0.27122257]
[1740985524498,1.268,597.97,597.02,0.27128158]
[1740985524693,1.268,597.97,597.03,0.27128158]
[1740985524897,1.268,597.97,597.04,0.27128158]
[1740985525098,1.268,597.97,597.05,0.27128158]
[1740985525295,1.268,597.97,597.06,0.27128158]
[1740985525497,1.268,597.97,596.87,1.23141189]
[1740985525498,1.005,597.97,597.07,0.27128158]
[1740985525698,1.005,597.97,597.08,0.27128158]
[1740985525895,1.005,597.97,596.9,0.27128158]
[1740985526094,1.005,597.97,596.91,0.27129435]
[1740985526303,1.005,597.97,596.92,0.27129435]
[1740985526599,1.005,597.97,596.93,0.27129435]
[1740985526796,1.005,597.97,596.94,0.27129435]
[1740985527096,1.005,597.97,596.95,0.27129435]
[1740985527300,1.005,597.97,596.96,0.27129435]
[1740985527499,1.005,597.97,596.97,0.27129435]
[1740985527694,1.005,597.97,596.98,0.27129435]
[1740985527894,1.005,597.97,596.99,0.27129435]
[1740985528098,1.005,597.97,597.0,0.27129435]
[1740985528299,1.005,597.97,597.01,0.27129435]
[1740985528499,1.005,597.97,597.02,0.27129435]
[1740985528700,0.263,597.96,597.03,0.27129435]
[1740985528998,0.263,597.96,597.04,0.27129435]
[1740985529205,0.263,597.96,596.95,1.23141189]
[1740985529400,0.263,597.96,596.96,0.27121867]
[1740985529698,0.263,597.96,596.97,0.27121867]
[1740985529902,0.263,597.96,596.98,0.27121867]
[1740985530101,0.263,597.96,596.99,0.27121867]
[1740985530297,0.263,597.96,597.0,0.27121867]
[1740985530502,0.263,597.96,597.01,0.27121867]
[1740985530703,0.263,597.96,597.02,0.27121867]
[1740985530904,0.901,597.95,597.02,0.27121867]
[1740985531104,0.901,597.95,596.94,1.23141189]
[1740985531105,0.901,597.95,597.03,0.27121867]
[1740985531302,0.901,597.95,597.04,0.27121867]
[1740985531498,0.901,597.95,597.05,0.27121867]
[1740985531702,0.901,597.95,597.06,0.27121867]
[1740985531902,0.901,597.95,597.07,0.27121867]
[1740985532199,0.901,597.95,597.08,0.27121867]
[1740985532401,0.901,597.95,597.09,0.27121867]
[1740985532605,0.901,597.95,597.1,0.27121867]
[1740985532808,0.901,597.95,597.11,0.27121867]
[1740985532999,0.901,597.95,597.12,0.27121867]
[1740985533305,0.901,597.95,597.13,0.27121867]
[1740985533604,0.901,597.95,597.14,0.27121867]
[1740985533806,0.901,597.95,597.15,0.27121867]
[1740985534005,0.901,597.95,597.16,0.27121867]
[1740985534205,0.901,597.95,597.17,0.27121867]
[1740985534406,0.901,597.95,597.18,0.27121867]
[1740985534700,0.901,597.95,597.19,0.27121867]
[1740985535005,0.901,597.95,597.2,0.60611485]
[1740985535206,0.901,597.95,597.21,0.27121867]
[1740985535401,0.901,597.95,597.22,0.27121867]
[1740985535607,0.901,597.95,597.2,0.33489618]
[1740985535608,0.901,597.95,597.23,0.27121867]
[1740985535803,0.901,597.95,597.24,0.27121867]
[1740985536006,0.901,597.95,597.25,0.27121867]
[1740985536304,0.901,597.95,597.26,0.27121867]
[1740985536511,0.901,597.95,597.27,0.27121867]
[1740985536704,0.901,597.95,597.28,0.27121867]
[1740985536904,0.901,597.95,597.29,0.27121867]
[1740985537104,0.901,597.95,597.3,0.27121867]
[1740985537306,0.901,597.95,597.31,0.27121867]
[1740985537502,0.901,597.95,597.32,0.27121867]
[1740985537706,0.901,597.95,597.2,0.33489618]
[1740985537707,0.53584754,597.95,597.43,1.23141189]
[1740985538008,0.53584754,597.95,597.44,0.27121867]
[1740985538206,0.53584754,597.95,597.45,0.27121867]
[1740985538401,0.53584754,597.95,597.46,0.27121867]
[1740985538605,0.53584754,597.95,597.47,0.27121867]
[1740985538805,0.53584754,597.95,597.48,0.27121867]
[1740985539009,0.53584754,597.95,597.49,0.27121867]
[1740985539206,0.53584754,597.95,597.5,0.27121867]
[1740985539401,0.53584754,597.95,597.51,0.27121867]
[1740985539600,0.53584754,597.95,597.52,0.27121867]
[1740985539802,0.53584754,597.95,597.53,0.27121867]
[1740985540002,0.53584754,597.95,597.54,0.27121867]
[1740985540200,0.53584754,597.95,597.55,0.27121867]
[1740985540406,0.53584754,597.95,597.56,0.27121867]
[1740985540711,0.53584754,597.95,597.65,1.23141189]
[1740985541006,0.53584754,597.95,597.66,0.27084269]
[1740985541205,0.53584754,597.95,597.67,0.27084269]
[1740985541410,0.53584754,597.95,597.65,1.23141189]
[1740985541411,0.53584754,597.95,597.68,0.27084269]
[1740985541611,0.53584754,597.95,597.69,0.27084269]
[1740985541911,0.53584754,597.95,597.7,0.27084269]
[1740985542110,0.53584754,597.95,597.71,0.27084269]
[1740985542309,0.53584754,597.95,597.65,1.23141189]
[1740985542809,0.53584754,597.95,597.72,0.27071347]
[1740985543005,0.53584754,597.95,597.73,0.27071347]
[1740985543203,0.53584754,597.95,597.74,0.27071347]
[1740985543409,0.53584754,597.95,597.75,0.27071347]
[1740985543711,0.53584754,597.95,597.76,0.27071347]
[1740985543903,0.53584754,597.95,597.83,1.23125576]
[1740985544209,0.53584754,597.95,597.84,0.27071347]
[1740985544409,0.53584754,597.95,597.85,0.27071347]
[1740985544610,0.53584754,597.95,597.86,0.27071347]
[1740985544804,0.53584754,597.95,597.87,0.27071347]
[1740985545009,0.53584754,597.95,597.88,0.27071347]
[1740985545206,0.53584754,597.95,597.89,0.27071347]
[1740985545602,0.53584754,597.95,597.83,1.23125576]
[1740985545603,0.53584754,597.95,597.9,0.27071347]
[1740985545808,0.53584754,597.95,597.91,0.27071347]
[1740985546005,0.53584754,597.95,597.92,0.27071347]
[1740985546205,0.53584754,597.95,597.93,0.27071347]
[1740985546410,0.53584754,597.95,597.94,0.27071347]
[1740985550415,0.53584754,597.95,597.94,1.20063922]
[1740985551811,0.53584754,597.95,597.94,0.92992575]
[1740985552119,0.53584754,597.95,597.94,1.20065428]
[1740985552520,0.53584754,597.95,597.94,2.94414853]
[1740985553019,1.125,598.1,597.94,0.27072853]
[1740985553213,1.125,598.1,597.95,0.27072853]
[1740985553519,1.125,598.1,597.96,0.27064553]
[1740985553720,1.125,598.1,597.97,0.27064553]
[1740985554019,1.125,598.1,597.98,0.27064553]
[1740985554220,1.125,598.1,597.94,1.74361073]
[1740985554221,1.125,598.1,597.99,0.27064553]
[1740985554519,1.125,598.1,598.0,0.27064553]
[1740985554819,1.125,598.1,598.01,0.27064553]
[1740985555119,1.125,598.1,598.02,0.27063517]
[1740985555312,1.125,598.1,598.03,0.27063517]
[1740985555512,1.125,598.1,598.04,0.27063517]
[1740985555719,1.125,598.1,598.05,0.27063517]
[1740985555920,1.125,598.1,598.06,0.27063517]
[1740985556117,1.125,598.1,598.07,0.27063517]
[1740985556314,1.125,598.1,598.08,0.27063517]
[1740985556520,1.125,598.1,598.09,0.27063517]
[1740985559916,0.76023264,598.1,598.09,0.27071608]
[1740985564220,0.76023264,598.1,597.86,1.21832327]
[1740985564423,0.76023264,598.1,597.87,0.27083238]
[1740985564720,0.76023264,598.1,597.88,0.27083238]
[1740985564924,0.76023264,598.1,597.89,0.27083238]
[1740985565225,0.76023264,598.1,597.9,0.27083238]
[1740985565428,0.76023264,598.1,597.91,0.27083238]
[1740985565626,0.76023264,598.1,597.86,1.21832327]
[1740985565627,0.76023264,598.1,597.92,0.27083238]
[1740985566026,0.76023264,598.1,597.93,0.27083238]
[1740985566326,0.76023264,598.1,597.93,0.27072975]
[1740985566531,0.76023264,598.1,597.94,0.27072975]
[1740985566732,0.76023264,598.1,598.07,1.22065527]
[1740985566931,0.76023264,598.1,598.08,0.27072975]
[1740985567230,0.76023264,598.1,598.09,0.27072975]
[1740985567632,0.76023264,598.1,598.09,0.27057498]
[1740985568231,0.49977397,598.1,598.09,0.27057498]
[1740985569136,0.49977397,598.1,598.09,1.20094606]
[1740985569732,0.08742729,598.1,598.09,1.20094606]
[1740985570134,0.05781953,598.1,598.09,1.20094606]
[1740985570331,0.917,598.53,598.09,1.20094606]
[1740985570637,0.917,598.53,598.09,0.93037108]
[1740985570836,0.917,598.53,598.1,0.2704643]
[1740985571039,0.917,598.53,598.09,0.93037108]
[1740985571040,0.917,598.53,598.11,0.2704643]
[1740985571240,0.917,598.53,598.12,0.2704643]
[1740985571438,0.917,598.53,598.09,0.93037108]
[1740985571634,0.917,598.53,598.1,0.27039647]
[1740985571838,0.177,598.55,598.11,0.27039647]
[1740985572137,0.177,598.55,598.12,0.27039647]
[1740985572334,0.177,598.55,598.13,0.27039832]
[1740985572536,0.177,598.55,598.14,0.27039832]
[1740985572741,0.177,598.55,598.15,0.27039832]
[1740985572938,0.177,598.55,598.16,0.27039832]
[1740985573136,0.177,598.55,598.17,0.27039832]
[1740985573440,0.177,598.55,598.18,0.27039832]
[1740985573740,0.177,598.55,598.19,0.27039832]
[1740985573935,0.177,598.55,598.2,0.27039832]
[1740985574134,0.177,598.55,598.21,0.27039832]
[1740985574339,0.177,598.55,598.22,0.27039832]
[1740985574640,0.71348671,598.56,598.23,0.27039832]
[1740985574940,0.263,598.75,598.24,0.27039832]
[1740985575143,0.263,598.75,598.25,0.27039832]
[1740985575439,0.263,598.75,598.26,0.27039832]
[1740985575639,0.263,598.75,598.27,0.27039832]
[1740985575840,0.263,598.75,598.28,0.27039832]
[1740985576035,0.263,598.75,598.14,0.93037108]
[1740985576036,0.263,598.75,598.29,0.27039832]
[1740985576240,0.263,598.75,598.3,0.27039832]
[1740985576441,0.17562956,598.75,598.31,0.27039832]
[1740985576642,0.17562956,598.75,598.32,0.27039832]
[1740985576943,0.17562956,598.75,598.14,0.93037108]
[1740985576944,0.17562956,598.75,598.33,0.27039832]
[1740985577141,0.17562956,598.75,598.34,0.27039832]
[1740985577441,0.11752629,598.75,598.35,0.27039832]
[1740985577643,0.11752629,598.75,598.54,2.5044282]
[1740985577844,0.11752629,598.75,598.55,0.27039832]
[1740985578036,0.11752629,598.75,598.54,2.5044282]
[1740985578037,0.11752629,598.75,598.56,0.27039832]
[1740985578237,0.11752629,598.75,598.57,0.27039832]
[1740985578441,0.11752629,598.75,598.58,0.27039832]
[1740985578739,0.11752629,598.75,598.59,0.27039832]
[1740985578937,0.11752629,598.75,598.6,0.27039832]
[1740985579139,0.11752629,598.75,598.61,0.27039832]
[1740985579342,0.11752629,598.75,598.62,0.27039832]
[1740985579542,0.11752629,598.75,598.63,0.27039832]
[1740985579738,0.11752629,598.75,598.66,2.49463273]
[1740985579944,0.57635041,599.01,598.67,0.27039832]
[1740985580146,0.57635041,599.01,598.68,0.27039832]
[1740985580444,0.57635041,599.01,598.69,0.27039832]
[1740985580646,0.57635041,599.01,598.7,0.27039832]
[1740985580846,0.57635041,599.01,598.71,0.27039832]
[1740985581051,0.747,599.58,598.72,0.27039832]
[1740985581252,0.747,599.58,598.73,0.27039832]
[1740985581448,0.747,599.58,598.24,2.5044282]
[1740985581449,0.747,599.58,598.74,0.27039832]
[1740985581750,0.747,599.58,598.75,0.27039832]
[1740985581950,0.747,599.58,598.76,0.27039832]
[1740985582150,0.747,599.58,598.77,0.27039832]
[1740985582350,0.747,599.58,598.78,0.27039832]
[1740985582549,0.747,599.58,598.79,0.27039832]
[1740985582950,0.747,599.58,598.8,0.27039832]
[1740985583251,0.747,599.58,598.69,2.49463273]
[1740985583252,0.747,599.58,598.81,0.27039832]
[1740985583451,0.747,599.58,598.82,0.27039832]
[1740985583652,0.747,599.58,598.83,0.27039069]
[1740985583953,0.747,599.58,598.84,0.27039069]
[1740985584152,0.747,599.58,598.85,0.27039069]
[1740985584348,0.747,599.58,598.28,2.5044282]
[1740985584349,0.747,599.58,598.89,1.21952914]
[1740985584554,1.536,599.58,598.9,0.27039069]
[1740985584747,1.536,599.58,598.91,0.27039069]
[1740985584948,1.536,599.58,598.92,0.27039069]
[1740985585146,1.536,599.58,598.9,0.27039069]
[1740985585347,1.536,599.58,598.93,0.27039069]
[1740985585554,1.536,599.58,598.89,1.21952914]
[1740985585555,1.536,599.58,598.94,0.27039069]
[1740985585753,1.536,599.58,598.95,0.27039069]
[1740985585947,1.536,599.58,598.89,1.21952914]
[1740985585948,1.536,599.58,598.9,0.27039069]
[1740985586150,1.536,599.58,598.91,0.27039069]
[1740985586453,1.536,599.58,598.92,0.27039069]
[1740985586753,1.536,599.58,598.93,0.27039069]
[1740985586953,1.536,599.58,598.94,0.27039069]
[1740985587155,1.536,599.58,598.95,0.27039069]
[1740985587352,1.536,599.58,598.52,1.21952914]
[1740985587353,1.536,599.58,598.53,0.27039069]
[1740985587653,1.536,599.58,598.54,0.27039069]
[1740985587853,1.536,599.58,598.55,0.27039069]
[1740985588055,1.536,599.58,598.56,0.27039069]
[1740985588256,1.536,599.58,598.52,1.21952914]
[1740985588552,1.536,599.58,598.53,0.27039662]
[1740985588855,1.536,599.58,598.54,0.27039662]
[1740985589055,1.536,599.58,598.55,0.27039662]
[1740985589257,1.536,599.58,598.56,0.27039662]
[1740985589450,1.536,599.58,598.57,0.27039662]
[1740985589651,1.536,599.58,598.58,0.27039662]
[1740985589856,1.536,599.58,598.46,1.21952914]
[1740985590054,1.536,599.58,598.47,0.27033711]
[1740985590255,1.536,599.58,598.48,0.27033711]
[1740985590455,1.536,599.58,598.49,0.27033711]
[1740985590656,1.536,599.58,598.5,0.27033711]
[1740985590860,1.536,599.58,598.51,0.27033711]
[1740985591056,1.536,599.58,598.52,0.27033711]
[1740985591252,1.536,599.58,598.89,1.21952914]
[1740985591456,1.536,599.58,598.9,0.27033711]
[1740985591654,1.536,599.58,598.91,0.27033711]
[1740985591852,1.536,599.58,598.92,0.27033711]
[1740985592056,1.536,599.58,598.93,0.27033711]
[1740985592254,1.536,599.58,598.94,0.27033711]
[1740985592559,1.536,599.58,598.95,0.27033711]
[1740985592758,1.536,599.58,598.96,0.27033711]
[1740985592955,1.536,599.58,598.97,0.27033711]
[1740985593160,1.536,599.58,598.98,0.27034568]
[1740985593353,1.536,599.58,598.99,0.27034568]
[1740985593559,1.536,599.58,599.0,0.27034568]
[1740985593753,1.536,599.58,599.01,0.27034568]
[1740985593955,1.536,599.58,599.02,0.27034568]
[1740985594153,1.536,599.58,599.03,0.27034568]
[1740985594461,1.536,599.58,599.04,0.27034568]
[1740985594655,1.536,599.58,598.91,1.21952914]
[1740985594856,1.536,599.58,598.92,0.27035515]
[1740985595072,1.536,599.58,598.95,1.21952914]
[1740985595258,1.536,599.58,598.96,0.27035515]
[1740985595455,1.536,599.58,598.95,1.21952914]
[1740985595456,1.536,599.58,598.97,0.27035515]
[1740985595760,2.484,599.58,598.98,0.27035515]
[1740985595959,2.484,599.58,598.99,0.60425054]
[1740985596163,2.484,599.58,599.0,0.60424496]
[1740985596460,2.484,599.58,599.01,0.60423939]
[1740985596661,2.484,599.58,599.02,0.27035515]
[1740985596863,2.484,599.58,599.04,1.21952914]
[1740985597062,2.484,599.58,599.05,0.27035515]
[1740985597455,2.484,599.58,599.06,0.27035515]
[1740985597762,2.484,599.58,599.07,0.27035515]
[1740985597955,2.484,599.58,599.08,0.27023197]
[1740985598160,2.484,599.58,599.09,0.27023197]
[1740985598361,2.484,599.58,599.1,0.27023197]
[1740985598561,2.484,599.58,599.11,0.27023197]
[1740985598859,2.484,599.58,599.12,0.27023197]
[1740985599165,2.484,599.58,599.29,1.21952914]
[1740985599364,2.484,599.58,599.3,0.27023197]
[1740985599564,2.484,599.58,599.31,0.27013589]
[1740985599768,2.484,599.58,599.29,1.21952914]
[1740985599769,2.484,599.58,599.32,0.27013589]
[1740985599958,2.484,599.58,599.33,0.27013589]
[1740985600159,2.484,599.58,599.34,0.27013589]
[1740985600362,2.484,599.58,599.35,0.27013589]
[1740985600559,2.484,599.58,599.3,0.27013589]
[1740985600863,2.484,599.58,599.31,0.60385299]
[1740985601059,2.484,599.58,599.36,1.21952914]
[1740985601267,2.484,599.58,599.37,0.60391139]
[1740985601466,2.484,599.58,599.38,0.60390582]
[1740985601665,2.484,599.58,599.39,0.27022769]
[1740985601860,2.484,599.58,599.4,0.27022769]
[1740985602067,2.484,599.58,599.41,0.27025111]
[1740985602362,2.484,599.58,599.42,0.27025111]
[1740985602562,2.484,599.58,599.38,0.33367813]
[1740985602765,2.484,599.58,599.43,0.27024184]
[1740985602969,2.484,599.58,599.39,0.27024184]
[1740985603164,2.484,599.58,599.46,1.21952914]
[1740985603367,2.484,599.58,599.47,0.60386987]
[1740985603568,2.484,599.58,599.48,0.60386431]
[1740985603769,2.484,599.58,599.49,0.60385874]
[1740985603971,2.484,599.58,599.5,0.60385318]
[1740985604263,2.484,599.58,599.51,0.27024184]
[1740985604467,2.484,599.58,599.52,0.60384205]
[1740985604668,2.484,599.58,599.53,0.27024184]
[1740985604870,2.484,599.58,599.54,0.27024184]
[1740985605071,2.484,599.58,599.55,0.27024184]
[1740985605269,2.484,599.58,599.52,0.33360021]
[1740985605270,2.484,599.58,599.56,0.27024184]
[1740985605466,2.484,599.58,599.57,0.27024184]
[1740985605870,2.484,599.58,599.57,0.27014528]
[1740985606566,2.11986473,599.58,599.57,0.27014528]
[1740985607472,2.11986473,599.58,599.57,0.2701528]
[1740985607669,2.11986473,599.58,599.57,1.20012096]
[1740985610373,2.11986473,599.58,599.57,0.2701528]
[1740985610770,2.11986473,599.58,599.53,0.2701528]
[1740985610971,2.11986473,599.58,599.54,0.60374188]
[1740985611268,2.11986473,599.58,599.55,0.60373632]
[1740985611474,2.11986473,599.58,599.56,0.60373075]
[1740985611770,2.11986473,599.58,599.57,0.2701528]
[1740985613677,2.11986473,599.58,599.57,0.27021188]
[1740985614676,1.33086473,599.58,599.57,0.27021188]
[1740985615378,1.33086473,599.58,599.56,0.33357795]
[1740985615580,1.33086473,599.58,599.57,0.27011576]
[1740985617880,1.33086473,599.58,599.57,0.60368815]
[1740985620685,1.33086473,599.58,599.57,1.53130861]
[1740985620986,0.38286473,599.58,599.57,1.53130861]
[1740985621486,0.38286473,599.58,599.57,1.53137684]
[1740985624590,0.38286473,599.58,599.57,1.53140664]
[1740985624789,0.25646277,599.58,599.57,1.53140664]
[1740985625385,0.04921464,599.58,599.57,1.53140664]
[1740985626192,0.04921464,599.58,599.57,1.53131517]
[1740985626889,0.805,600.09,599.57,1.53131517]
[1740985627089,0.805,600.09,599.58,0.33356683]
[1740985627391,0.805,600.09,599.59,0.27012232]
[1740985627792,0.805,600.09,599.58,0.33356683]
[1740985627793,0.805,600.09,599.6,0.27012232]
[1740985627993,0.805,600.09,599.61,0.27012232]
[1740985628195,0.805,600.09,599.58,0.33356683]
[1740985628196,0.805,600.09,599.62,0.27012232]
[1740985628388,0.805,600.09,599.58,0.33356683]
[1740985628389,0.805,600.09,599.99,1.24000261]
[1740985628589,0.805,600.09,600.0,0.27012232]
[1740985628788,0.805,600.09,600.01,0.33332777]
[1740985628991,0.805,600.09,600.02,0.27012232]
[1740985629198,0.805,600.09,600.03,0.33331666]
[1740985629488,0.805,600.09,600.04,0.27012232]
[1740985629694,0.805,600.09,600.05,0.33330555]
[1740985629894,0.805,600.09,600.06,0.27012232]
[1740985630090,0.805,600.09,600.07,0.33329444]
[1740985630295,0.805,600.09,600.08,0.27012232]
[1740985634199,0.805,600.09,600.08,0.27011647]
[1740985634593,0.805,600.09,600.08,0.60340536]
[1740985636202,0.54105965,600.09,600.08,0.60340536]
[1740985636805,0.10547959,600.09,600.08,1.53578039]
[1740985639097,0.10547959,600.09,600.08,1.53557032]
[1740985642106,0.689,600.6,600.08,1.53557032]
[1740985642301,0.689,600.6,600.08,1.26566392]
[1740985642504,0.689,600.6,600.09,0.26980565]
[1740985642707,0.689,600.6,600.1,0.26980565]
[1740985643008,0.689,600.6,600.11,0.26980565]
[1740985643404,0.689,600.6,600.12,0.26980565]